fUST/lending_fUST_20250127
["ID","MTS","AMOUNT","RATE_DAILY","PERIOD"]
[350520297,1737941447683,-1760.96,0.0001726,2]
[350520298,1737941447692,-500.0,0.0001726,2]
[350520299,1737941447701,-500.0,0.0001726,2]
[350520300,1737941447710,-500.0,0.0001726,2]
[350520301,1737941447719,-645.2,0.0001726,2]
[350520302,1737941447728,-500.0,0.0001726,2]
[350520303,1737941447737,-500.0,0.0001726,2]
[350520304,1737941447747,-500.0,0.0001726,2]
[350520306,1737941447756,-500.0,0.0001726,2]
[350520308,1737941447766,-500.0,0.0001726,2]
[350520310,1737941447775,-838.61,0.0001726,2]
[350520312,1737941447784,-533.26,0.0001726,2]
[350520314,1737941447793,-500.0,0.0001726,2]
[350520316,1737941447802,-500.0,0.0001726,2]
[350520318,1737941447811,-596.43,0.0001726,2]
[350520320,1737941447820,-618.15,0.0001726,2]
[350520322,1737941447829,-500.0,0.0001726,2]
[350520324,1737941447838,-500.0,0.0001726,2]
[350520326,1737941447847,-500.0,0.0001726,2]
[350520328,1737941447856,-500.0,0.0001726,2]
[350520330,1737941447866,-500.0,0.0001726,2]
[350520332,1737941447875,-1582.07,0.0001726,2]
[350520334,1737941447884,-500.0,0.0001726,2]
[350520336,1737941447895,-1578.19,0.0001726,2]
[350520338,1737941447904,-921.47,0.0001726,2]
[350520340,1737941447913,-1591.83,0.0001726,2]
[350520342,1737941447923,-500.0,0.0001726,2]
[350520344,1737941447932,-660.6,0.0001726,2]
[350520346,1737941447941,-500.0,0.0001726,2]
[350520348,1737941447950,-231.14683654,0.00017314,2]
[350520350,1737941447960,-529.47,0.00017396,2]
[350520352,1737941447969,-529.47,0.00017396,2]
[350520354,1737941447978,-529.47,0.00017396,2]
[350520356,1737941447988,-529.47,0.00017396,2]
[350520358,1737941447997,-529.50059717,0.00017396,2]
[350520360,1737941448009,-500.0,0.00017397,2]
[350520362,1737941448018,-1760.96,0.00017397,2]
[350520364,1737941448027,-500.0,0.00017397,2]
[350520366,1737941448038,-500.0,0.00017397,2]
[350520368,1737941448047,-500.0,0.00017397,2]
[350520370,1737941448057,-500.0,0.00017397,2]
[350520372,1737941448066,-289.68,0.00017397,2]
[350520374,1737941448076,-500.0,0.00017397,2]
[350520376,1737941448086,-465.79,0.00017397,2]
[350520378,1737941448095,-500.0,0.00017397,2]
[350520380,1737941448104,-838.61,0.00017397,2]
[350520382,1737941448115,-533.26,0.00017397,2]
[350520384,1737941448125,-500.0,0.00017397,2]
[350520386,1737941448134,-500.0,0.00017397,2]
[350520388,1737941448145,-596.43,0.00017397,2]
[350520390,1737941448156,-500.0,0.00017397,2]
[350520392,1737941448165,-500.0,0.00017397,2]
[350520394,1737941448175,-500.0,0.00017397,2]
[350520396,1737941448186,-500.0,0.00017397,2]
[350520398,1737941448195,-500.0,0.00017397,2]
[350520400,1737941448205,-1582.07,0.00017397,2]
[350520402,1737941448215,-500.0,0.00017397,2]
[350520404,1737941448225,-1578.19,0.00017397,2]
[350520406,1737941448234,-921.47,0.00017397,2]
[350520407,1737941448246,-1591.83,0.00017397,2]
[350520410,1737941448256,-500.0,0.00017397,2]
[350520411,1737941448266,-660.6,0.00017397,2]
[350520413,1737941448277,-500.0,0.00017397,2]
[350520415,1737941448286,-231.14683654,0.00017521,2]
[350520418,1737941448297,-547.62,0.00017534,2]
[350520420,1737941448307,-1760.96,0.00017534,2]
[350520422,1737941448316,-500.0,0.00017534,2]
[350520424,1737941448325,-500.0,0.00017534,2]
[350520426,1737941448335,-500.0,0.00017534,2]
[350520428,1737941448345,-221.91,0.00017534,2]
[350520430,1737941448355,-181.26,0.00017534,2]
[350520432,1737941448364,-500.0,0.00017534,2]
[350520434,1737941448374,-838.61,0.00017534,2]
[350520436,1737941448383,-533.26,0.00017534,2]
[350520438,1737941448392,-500.0,0.00017534,2]
[350520440,1737941448401,-494.17,0.00017534,2]
[350520442,1737941448410,-596.43,0.00017534,2]
[350520444,1737941448420,-334.22,0.00017534,2]
[350520445,1737941448429,-500.0,0.00017534,2]
[350520448,1737941448439,-500.0,0.00017534,2]
[350520450,1737941448448,-500.0,0.00017534,2]
[350520452,1737941448457,-500.0,0.00017534,2]
[350520454,1737941448466,-1582.07,0.00017534,2]
[350520456,1737941448476,-532.13,0.00017534,2]
[350520458,1737941448484,-1578.19,0.00017534,2]
[350520460,1737941448494,-921.47,0.00017534,2]
[350520462,1737941448503,-1591.83,0.00017534,2]
[350520464,1737941448512,-500.0,0.00017534,2]
[350520466,1737941448521,-660.6,0.00017534,2]
[350520468,1737941448530,-500.0,0.00017534,2]
[350520470,1737941448540,-1760.96,0.00017671,2]
[350520472,1737941448549,-342.72,0.00017671,2]
[350520474,1737941448558,-500.0,0.00017671,2]
[350520476,1737941448567,-500.0,0.00017671,2]
[350520478,1737941448576,-500.0,0.00017671,2]
[350520480,1737941448587,-838.61,0.00017671,2]
[350520482,1737941448596,-533.26,0.00017671,2]
[350520484,1737941448605,-627.63,0.00017671,2]
[350520486,1737941448614,-596.43,0.00017671,2]
[350520488,1737941448623,-500.0,0.00017671,2]
[350520490,1737941448632,-302.78243876,0.00017671,2]
[350520492,1737941448642,-500.0,0.00017671,2]
[350520494,1737941448653,-500.0,0.00017671,2]
[350520496,1737941448663,-1582.07,0.00017671,2]
[350520498,1737941448673,-1578.19,0.00017671,2]
[350520500,1737941448683,-921.47,0.00017671,2]
[350520502,1737941448694,-1591.83,0.00017671,2]
[350520504,1737941448703,-500.0,0.00017671,2]
[350520506,1737941448713,-660.6,0.00017671,2]
[350520508,1737941448722,-500.0,0.00017671,2]
[350520510,1737941448732,-7458.15634357,0.000177,2]
[350520512,1737941448741,-231.14683654,0.00017728,2]
[350520514,1737941448750,-1760.96,0.00017808,2]
[350520516,1737941448760,-500.0,0.00017808,2]
[350520518,1737941448770,-161.826836,0.00017808,2]
[350520520,1737941448780,-500.0,0.00017808,2]
[350520522,1737941448791,-838.61,0.00017808,2]
[350520524,1737941448802,-533.26,0.00017808,2]
[350520526,1737941448812,-596.43,0.00017808,2]
[350520528,1737941448823,-500.0,0.00017808,2]
[350520530,1737941448833,-500.0,0.00017808,2]
[350520532,1737941448843,-500.0,0.00017808,2]
[350520534,1737941448854,-1582.07,0.00017808,2]
[350520537,1737941448865,-1578.19,0.00017808,2]
[350520539,1737941448875,-921.47,0.00017808,2]
[350520541,1737941448885,-1591.83,0.00017808,2]
[350520542,1737941448899,-500.0,0.00017808,2]
[350520545,1737941448910,-660.6,0.00017808,2]
[350520547,1737941448920,-500.0,0.00017808,2]
[350520549,1737941448931,-166.0,0.00017808,2]
[350520550,1737941448941,-160.11295277,0.00017863,2]
[350520552,1737941448952,-231.14683654,0.00017934,2]
[350520554,1737941448965,-1760.96,0.00017945,2]
[350520557,1737941448975,-500.0,0.00017945,2]
[350520559,1737941448985,-500.0,0.00017945,2]
[350520571,1737941449094,-838.61,0.00017945,2]
[350520573,1737941449104,-533.26,0.00017945,2]
[350520575,1737941449114,-596.43,0.00017945,2]
[350520577,1737941449124,-500.0,0.00017945,2]
[350520579,1737941449134,-500.0,0.00017945,2]
[350520581,1737941449147,-471.45,0.00017945,2]
[350520583,1737941449158,-1582.07,0.00017945,2]
[350520585,1737941449168,-1578.19,0.00017945,2]
[350520587,1737941449179,-921.47,0.00017945,2]
[350520589,1737941449190,-1591.83,0.00017945,2]
[350520591,1737941449203,-500.0,0.00017945,2]
[350520593,1737941449213,-660.6,0.00017945,2]
[350520595,1737941449223,-316.11372598,0.00017945,2]
[350520597,1737941449235,-420.0,0.00017962,2]
[350520599,1737941449245,-1760.96,0.00018082,2]
[350520602,1737941449256,-500.0,0.00018082,2]
[350520603,1737941449266,-500.0,0.00018082,2]
[350520606,1737941449277,-838.61,0.00018082,2]
[350520608,1737941449286,-533.26,0.00018082,2]
[350520610,1737941449296,-596.43,0.00018082,2]
[350520612,1737941449306,-500.0,0.00018082,2]
[350520614,1737941449315,-500.0,0.00018082,2]
[350520616,1737941449325,-1582.07,0.00018082,2]
[350520618,1737941449335,-1578.19,0.00018082,2]
[350520620,1737941449344,-921.47,0.00018082,2]
[350520622,1737941449354,-1591.83,0.00018082,2]
[350520624,1737941449363,-500.0,0.00018082,2]
[350520626,1737941449372,-660.6,0.00018082,2]
[350520628,1737941449382,-1898.3,0.000181,2]
[350520630,1737941449393,-231.14683654,0.00018141,2]
[350520631,1737941449402,-226.5734408,0.00018164,2]
[350520634,1737941449412,-1760.96,0.00018219,2]
[350520636,1737941449422,-500.0,0.00018219,2]
[350520637,1737941449432,-500.0,0.00018219,2]
[350520640,1737941449443,-838.61,0.00018219,2]
[350520642,1737941449453,-533.26,0.00018219,2]
[350520643,1737941449462,-596.43,0.00018219,2]
[350520646,1737941449472,-500.0,0.00018219,2]
[350520647,1737941449482,-500.0,0.00018219,2]
[350520649,1737941449491,-1582.07,0.00018219,2]
[350520651,1737941449501,-1578.19,0.00018219,2]
[350520653,1737941449510,-921.47,0.00018219,2]
[350520655,1737941449520,-1591.83,0.00018219,2]
[350520657,1737941449530,-500.0,0.00018219,2]
[350520659,1737941449539,-660.6,0.00018219,2]
[350520661,1737941449549,-231.14683654,0.00018348,2]
[350520664,1737941449559,-1760.96,0.00018356,2]
[350520666,1737941449570,-500.0,0.00018356,2]
[350520668,1737941449579,-500.0,0.00018356,2]
[350520670,1737941449589,-838.61,0.00018356,2]
[350520672,1737941449599,-533.26,0.00018356,2]
[350520674,1737941449610,-596.43,0.00018356,2]
[350520676,1737941449622,-500.0,0.00018356,2]
[350520678,1737941449632,-500.0,0.00018356,2]
[350520680,1737941449644,-1582.07,0.00018356,2]
[350520682,1737941449655,-1578.19,0.00018356,2]
[350520684,1737941449664,-921.47,0.00018356,2]
[350520686,1737941449674,-1591.83,0.00018356,2]
[350520688,1737941449686,-303.16968586,0.00018356,2]
[350520690,1737941449696,-151.0,0.00018356,2]
[350520692,1737941449706,-660.6,0.00018356,2]
[350520694,1737941449715,-5051.14,0.000184,2]
[350520696,1737941449725,-211.656,0.00018473,2]
[350520698,1737941449735,-1760.96,0.00018493,2]
[350520700,1737941449744,-500.0,0.00018493,2]
[350520702,1737941449753,-500.0,0.00018493,2]
[350520704,1737941449763,-838.61,0.00018493,2]
[350520707,1737941449772,-533.26,0.00018493,2]
[350520709,1737941449782,-596.43,0.00018493,2]
[350520711,1737941449791,-297.82,0.00018493,2]
[350520713,1737941449800,-500.0,0.00018493,2]
[350520715,1737941449810,-1582.07,0.00018493,2]
[350520717,1737941449819,-1578.19,0.00018493,2]
[350520719,1737941449828,-921.47,0.00018493,2]
[350520720,1737941449838,-1591.83,0.00018493,2]
[350520722,1737941449847,-660.6,0.00018493,2]
[350520724,1737941449856,-1200.0,0.00018513,2]
[350520726,1737941449865,-2247.80377758,0.0001852,2]
[350520728,1737941449874,-231.14683654,0.00018555,2]
[350520729,1737941449883,-150.66,0.000186,2]
[350520731,1737941449893,-150.66,0.000186,2]
[350520733,1737941449903,-200.780589,0.0001863,2]
[350520735,1737941449912,-151.0,0.0001863,2]
[350520737,1737941449922,-187.993799,0.0001863,2]
[350520739,1737941449931,-187.993799,0.0001863,2]
[350520740,1737941449940,-151.0,0.0001863,2]
[350520742,1737941449949,-1760.96,0.0001863,2]
[350520744,1737941449959,-500.0,0.0001863,2]
[350520746,1737941449968,-1262.822813,0.0001863,2]
[350520748,1737941449977,-1262.822813,0.0001863,2]
[350520750,1737941449986,-500.0,0.0001863,2]
[350520752,1737941449996,-838.61,0.0001863,2]
[350520753,1737941450005,-509.627234,0.0001863,2]
[350520755,1737941450016,-151.0,0.0001863,2]
[350520757,1737941450025,-509.627234,0.0001863,2]
[350520759,1737941450035,-533.26,0.0001863,2]
[350520761,1737941450044,-151.0,0.0001863,2]
[350520763,1737941450054,-596.43,0.0001863,2]
[350520765,1737941450064,-151.0,0.0001863,2]
[350520767,1737941450073,-500.0,0.0001863,2]
[350520769,1737941450082,-616.257179,0.0001863,2]
[350520770,1737941450092,-616.257179,0.0001863,2]
[350520772,1737941450101,-1582.07,0.0001863,2]
[350520774,1737941450110,-1578.19,0.0001863,2]
[350520776,1737941450120,-921.47,0.0001863,2]
[350520778,1737941450129,-151.0,0.0001863,2]
[350520780,1737941450139,-151.0,0.0001863,2]
[350520782,1737941450150,-1591.83,0.0001863,2]
[350520783,1737941450160,-151.0,0.0001863,2]
[350520785,1737941450169,-153.271683,0.0001863,2]
[350520787,1737941450179,-660.6,0.0001863,2]
[350520789,1737941450192,-231.14683654,0.00018762,2]
[350520791,1737941450201,-151.0,0.00018767,2]
[350520793,1737941450210,-1760.96,0.00018767,2]
[350520794,1737941450219,-535.46,0.00018767,2]
[350520796,1737941450229,-598.01,0.00018767,2]
[350520798,1737941450239,-838.61,0.00018767,2]
[350520800,1737941450248,-533.26,0.00018767,2]
[350520802,1737941450258,-596.43,0.00018767,2]
[350520804,1737941450268,-500.0,0.00018767,2]
[350520805,1737941450278,-1582.07,0.00018767,2]
[350520807,1737941450287,-1578.19,0.00018767,2]
[350520809,1737941450296,-921.47,0.00018767,2]
[350520811,1737941450305,-1591.83,0.00018767,2]
[350520813,1737941450314,-660.6,0.00018767,2]
[350520815,1737941450324,-500.0,0.00018779,2]
[350520816,1737941450333,-500.0,0.00018779,2]
[350520818,1737941450342,-500.0,0.00018814,2]
[350520820,1737941450351,-500.0,0.00018833,2]
[350520822,1737941450360,-3464.30588252,0.000189,2]
[350520824,1737941450369,-1760.96,0.00018904,2]
[350520826,1737941450379,-838.61,0.00018904,2]
[350520828,1737941450388,-533.26,0.00018904,2]
[350520830,1737941450398,-596.43,0.00018904,2]
[350520831,1737941450408,-500.0,0.00018904,2]
[350520833,1737941450417,-1582.07,0.00018904,2]
[350520835,1737941450426,-1578.19,0.00018904,2]
[350520837,1737941450435,-921.47,0.00018904,2]
[350520839,1737941450444,-1591.83,0.00018904,2]
[350520841,1737941450453,-660.6,0.00018904,2]
[350520843,1737941450463,-231.14683654,0.00018969,2]
[350520845,1737941450472,-9200.24,0.00019,2]
[350520847,1737941450481,-281.0739386,0.00019041,2]
[350520856,1737941450570,-1479.8860614,0.00019041,2]
[350520858,1737941450580,-838.61,0.00019041,2]
[350520860,1737941450589,-533.26,0.00019041,2]
[350520862,1737941450598,-596.43,0.00019041,2]
[350520864,1737941450608,-500.0,0.00019041,2]
[350520866,1737941450617,-1582.07,0.00019041,2]
[350520867,1737941450627,-1578.19,0.00019041,2]
[350520869,1737941450636,-921.47,0.00019041,2]
[350520871,1737941450646,-1591.83,0.00019041,2]
[350520873,1737941450655,-660.6,0.00019041,2]
[350520875,1737941450665,-13990.96019879,0.00019099,2]
[350520877,1737941450675,-231.14683654,0.00019176,2]
[350520879,1737941450684,-500.0,0.00019178,7]
[350520881,1737941450693,-1760.96,0.00019178,2]
[350520883,1737941450702,-838.61,0.00019178,2]
[350520885,1737941450711,-533.26,0.00019178,2]
[350520887,1737941450720,-596.43,0.00019178,2]
[350520889,1737941450730,-500.0,0.00019178,2]
[350520890,1737941450739,-1582.07,0.00019178,2]
[350520892,1737941450748,-964.98926205,0.00019178,2]
[350520895,1737941450761,-613.20073795,0.00019178,2]
[350520896,1737941450771,-921.47,0.00019178,2]
[350520898,1737941450780,-1591.83,0.00019178,2]
[350520900,1737941450790,-660.6,0.00019178,2]
[350520902,1737941450799,-320.579527,0.00019178,2]
[350520904,1737941450808,-151.0,0.00019315,2]
[350520906,1737941450817,-1760.96,0.00019315,2]
[350520908,1737941450826,-838.61,0.00019315,2]
[350520910,1737941450835,-533.26,0.00019315,2]
[350520912,1737941450844,-596.43,0.00019315,2]
[350520914,1737941450853,-500.0,0.00019315,2]
[350520916,1737941450862,-1582.07,0.00019315,2]
[350520918,1737941450872,-61.98973505,0.00019315,2]
[350520920,1737941450884,-680.58007675,0.00019315,2]
[350520922,1737941450898,-835.6201882,0.00019315,2]
[350520924,1737941450906,-514.40798243,0.00019315,2]
[350520927,1737941450927,-500.70349953,0.00016438,2]
[350520929,1737941450937,-407.06201757,0.00019315,2]
[350520930,1737941450946,-1591.83,0.00019315,2]
[350520932,1737941450956,-151.0,0.00019315,2]
[350520934,1737941450965,-660.6,0.00019315,2]
[350520936,1737941450975,-536.4347911,0.00019327,2]
[350520949,1737941451092,-503.89855206,0.00016438,2]
[350520951,1737941451102,-463.5652089,0.00019327,2]
[350520952,1737941451111,-1000.0,0.00019327,2]
[350520954,1737941451120,-1000.0,0.00019362,2]
[350520956,1737941451130,-1000.0,0.00019381,2]
[350520958,1737941451139,-231.14683654,0.00019383,2]
[350520960,1737941451149,-160.11295277,0.00019387,2]
[350520962,1737941451159,-151.0,0.00019452,2]
[350520964,1737941451168,-151.0,0.00019452,2]
[350520966,1737941451177,-151.0,0.00019452,2]
[350520968,1737941451187,-151.0,0.00019452,2]
[350520970,1737941451200,-838.61,0.00019452,2]
[350520972,1737941451209,-533.26,0.00019452,2]
[350520974,1737941451219,-596.43,0.00019452,2]
[350520976,1737941451228,-335.88,0.00019452,2]
[350520978,1737941451238,-1582.07,0.00019452,2]
[350520979,1737941451247,-1578.19,0.00019452,2]
[350520981,1737941451256,-921.47,0.00019452,2]
[350520983,1737941451266,-1591.83,0.00019452,2]
[350520985,1737941451277,-660.6,0.00019452,2]
[350520987,1737941451286,-838.78375886,0.00019589,2]
[350520989,1737941451295,-533.46,0.00019589,2]
[350520991,1737941451305,-596.59,0.00019589,2]
[350520995,1737941451339,-1582.09,0.00019589,2]
[350520997,1737941451348,-1578.38,0.00019589,2]
[350520999,1737941451357,-921.64101426,0.00019589,2]
[350521001,1737941451366,-1591.8558981,0.00019589,2]
[350521003,1737941451374,-660.61016454,0.00019589,2]
[350521005,1737941451383,-231.14683654,0.0001959,2]
[350521006,1737941451393,-587.0,0.0001963,2]
[350521008,1737941451402,-5051.14,0.000197,2]
[350521010,1737941451411,-231.14683654,0.00019797,2]
[350521012,1737941451420,-500.0,0.00019863,9]
[350521014,1737941451429,-153.0,0.00019977,2]
[350521016,1737941451438,-153.0,0.00019977,2]
[350521018,1737941451446,-153.0,0.00019977,2]
[350521020,1737941451455,-153.0,0.00019977,2]
[350521021,1737941451464,-153.0,0.00019977,2]
[350521023,1737941451473,-153.0,0.00019977,2]
[350521025,1737941451481,-153.0,0.00019977,2]
[350521027,1737941451490,-153.0,0.00019977,2]
[350521029,1737941451499,-153.0,0.00019977,2]
[350521031,1737941451507,-153.0,0.00019977,2]
[350521033,1737941451516,-153.0,0.00019977,2]
[350521034,1737941451525,-153.0,0.00019977,2]
[350521036,1737941451534,-153.0,0.00019977,2]
[350521038,1737941451543,-153.0,0.00019977,2]
[350521040,1737941451552,-153.0,0.00019977,2]
[350521042,1737941451562,-153.0,0.00019977,2]
[350521044,1737941451571,-153.0,0.00019977,2]
[350521046,1737941451580,-153.0,0.00019977,2]
[350521048,1737941451589,-153.0,0.00019977,2]
[350521050,1737941451598,-500.0,0.00019998,2]
[350521052,1737941451607,-160.0,0.0002,2]
[350521053,1737941451616,-151.0,0.0002,2]
[350521055,1737941451624,-150.0,0.0002,5]
[350521057,1737941451633,-151.45456969,0.0002,2]
[350521059,1737941451643,-622.33534753,0.0002,7]
[350521061,1737941451652,-231.14683654,0.00020003,2]
[350521063,1737941451660,-153.0,0.00020036,2]
[350521065,1737941451669,-153.0,0.00020036,2]
[350521066,1737941451678,-153.0,0.00020082,2]
[350521068,1737941451687,-153.0,0.00020082,2]
[350521070,1737941451696,-155.1479102,0.00020082,2]
[350521072,1737941451705,-231.14683654,0.0002021,2]
[350521074,1737941451715,-1500.0,0.00020328,2]
[350521076,1737941451724,-1500.0,0.00020328,2]
[350521078,1737941451733,-151.0,0.00020364,2]
[350521080,1737941451742,-151.0,0.00020364,2]
[350521082,1737941451751,-1500.0,0.00020364,2]
[350521083,1737941451760,-1500.0,0.00020383,2]
[350521085,1737941451769,-231.14683654,0.00020417,2]
[350521087,1737941451778,-500.0,0.00020547,11]
[350521089,1737941451787,-151.0,0.00020548,2]
[350521091,1737941451797,-4307.55791499,0.00020606,2]
[350521093,1737941451805,-231.14683654,0.00020624,2]
[350521095,1737941451814,-231.14683654,0.00020831,2]
[350521097,1737941451823,-9200.24,0.000209,2]
[350521099,1737941451832,-151.0,0.000209,2]
[350521101,1737941451842,-187.993799,0.000209,2]
[350521102,1737941451851,-187.993799,0.000209,2]
[350521104,1737941451860,-1262.822813,0.000209,2]
[350521106,1737941451869,-1262.822813,0.000209,2]
[350521108,1737941451881,-509.627234,0.000209,2]
[350521110,1737941451890,-151.0,0.000209,2]
[350521112,1737941451900,-509.627234,0.000209,2]
[350521114,1737941451910,-151.0,0.000209,2]
[350521116,1737941451919,-151.0,0.000209,2]
[350521118,1737941451929,-616.257179,0.000209,2]
[350521120,1737941451938,-616.257179,0.000209,2]
[350521121,1737941451947,-151.0,0.000209,2]
[350521123,1737941451955,-160.11295277,0.00020912,2]
[350521125,1737941451965,-257.6105894,0.00020999,2]
[350521127,1737941451974,-5086.67824828,0.00020999,5]
[350521129,1737941451982,-29925.23511671,0.00021,5]
[350521131,1737941451991,-7755.04270098,0.00021,2]
[350521133,1737941452000,-238.07383962,0.00021,2]
[350521134,1737941452009,-18694.32292388,0.00021,2]
[350521136,1737941452018,-231.12357898,0.00021,2]
[350521138,1737941452027,-3000.0,0.00021,2]
[350521140,1737941452037,-151.0,0.00021,2]
[350521142,1737941452047,-182.79507,0.00021,2]
[350521143,1737941452056,-3000.0,0.0002101,2]
[350521144,1737941452065,-3000.0,0.0002102,2]
[350521145,1737941452074,-3000.0,0.0002103,2]
[350521146,1737941452084,-231.14683654,0.00021038,2]
[350521147,1737941452093,-3000.0,0.0002104,2]
[350521148,1737941452102,-3000.0,0.0002105,2]
[350521149,1737941452112,-3000.0,0.0002106,2]
[350521150,1737941452122,-3000.0,0.0002107,2]
[350521151,1737941452132,-151.0,0.0002107,2]
[350521152,1737941452141,-3000.0,0.0002108,2]
[350521153,1737941452151,-3000.0,0.0002109,2]
[350521154,1737941452161,-19729.53800673,0.000211,10]
[350521155,1737941452170,-734.74878874,0.000211,2]
[350521156,1737941452184,-2265.25121126,0.000211,2]
[350521157,1737941452196,-151.0,0.000211,2]
[350521158,1737941452206,-156.117108,0.000211,2]
[350521159,1737941452215,-3000.0,0.0002111,2]
[350521160,1737941452224,-3000.0,0.0002112,2]
[350521161,1737941452234,-3000.0,0.0002113,2]
[350521162,1737941452243,-151.0,0.0002113,2]
[350521163,1737941452252,-3000.0,0.0002114,2]
[350521164,1737941452262,-3000.0,0.0002115,2]
[350521165,1737941452274,-3000.0,0.0002116,2]
[350521166,1737941452284,-3000.0,0.0002117,2]
[350521167,1737941452293,-3000.0,0.0002118,2]
[350521169,1737941452302,-151.0,0.0002118,2]
[350521171,1737941452311,-151.0,0.0002118,2]
[350521173,1737941452320,-151.0,0.0002118,2]
[350521175,1737941452329,-151.0,0.0002118,2]
[350521177,1737941452339,-3000.0,0.0002119,2]
[350521179,1737941452348,-151.0,0.0002119,2]
[350521181,1737941452357,-151.0,0.0002119,2]
[350521183,1737941452367,-397.70827783,0.000212,30]
[350521185,1737941452376,-3000.0,0.000212,2]
[350521187,1737941452386,-3000.0,0.0002121,2]
[350521189,1737941452395,-3000.0,0.0002122,2]
[350521191,1737941452404,-3000.0,0.0002123,2]
[350521193,1737941452414,-509.627234,0.0002123,2]
[350521195,1737941452423,-509.627234,0.0002123,2]
[350521197,1737941452433,-151.0,0.0002123,2]
[350521199,1737941452442,-616.257179,0.0002123,2]
[350521201,1737941452452,-616.257179,0.0002123,2]
[350521203,1737941452462,-500.0,0.00021232,13]
[350521205,1737941452471,-151.0,0.00021232,2]
[350521207,1737941452481,-1262.822813,0.00021232,2]
[350521209,1737941452490,-1262.822813,0.00021232,2]
[350521211,1737941452500,-151.0,0.00021232,2]
[350521213,1737941452510,-3000.0,0.0002124,2]
[350521215,1737941452519,-231.14683654,0.00021245,2]
[350521217,1737941452528,-3000.0,0.0002125,2]
[350521219,1737941452538,-187.993799,0.0002125,2]
[350521221,1737941452547,-187.993799,0.0002125,2]
[350521223,1737941452556,-1403.01215266,0.0002126,2]
[350521225,1737941452568,-1596.98784734,0.0002126,2]
[350521227,1737941452578,-2437.53137145,0.0002127,2]
[350521230,1737941452589,-562.46862855,0.0002127,2]
[350521232,1737941452599,-47.2729185,0.0002128,2]
[350521234,1737941452613,-2952.7270815,0.0002128,2]
[350521236,1737941452622,-3000.0,0.0002129,2]
[350521238,1737941452633,-3000.0,0.000213,2]
[350521241,1737941452643,-1209.975968,0.000213,2]
[350521243,1737941452657,-3841.164032,0.000213,2]
[350521245,1737941452667,-151.0,0.000213,2]
[350521247,1737941452676,-3000.0,0.0002131,2]
[350521249,1737941452686,-3000.0,0.0002132,2]
[350521251,1737941452695,-3000.0,0.0002133,2]
[350521253,1737941452704,-3000.0,0.0002134,2]
[350521256,1737941452714,-3000.0,0.0002135,2]
[350521258,1737941452723,-1349.08015247,0.0002136,2]
[350521260,1737941452734,-291.30958312,0.0002136,2]
[350521262,1737941452748,-1359.61026441,0.0002136,2]
[350521264,1737941452757,-3000.0,0.0002137,2]
[350521266,1737941452767,-3000.0,0.0002138,2]
[350521268,1737941452776,-2823.3082738,0.0002139,2]
[350521271,1737941452788,-176.6917262,0.0002139,2]
[350521273,1737941452798,-3000.0,0.000214,2]
[350521275,1737941452807,-151.0,0.000214,3]
[350521277,1737941452817,-2020.15,0.00021403,2]